bitfinex/quotes_ETHUSD_20241129
["timestamp","ask_amount","ask_price","bid_price","bid_amount"]
[1732851292288,0.26050026,3591.0,3590.5,2.78509]
[1732851292494,0.0141276,3590.9,3590.5,2.78509]
[1732851292681,0.0141276,3590.9,3590.6,0.03389594]
[1732851292857,0.8145,3590.9,3590.6,0.03389594]
[1732851293053,4.24725905,3590.9,3590.6,0.03389594]
[1732851293369,1.20187879,3590.9,3590.7,0.0339127]
[1732851293683,1.20187879,3590.9,3590.2,2.78528]
[1732851293883,0.8145,3590.9,3590.8,0.03393586]
[1732851294184,1.07512794,3590.9,3590.8,0.0339871]
[1732851294389,1.07520094,3590.9,3590.2,2.78528]
[1732851294683,0.26070094,3590.8,3590.2,2.78528]
[1732851294989,0.26070094,3590.7,3590.2,2.78528]
[1732851295146,3.59932,3590.9,3590.2,3.47406584]
[1732851295351,0.26069131,3590.8,3590.2,2.78528]
[1732851295563,0.26069131,3590.7,3590.2,2.78528]
[1732851295783,3.59932,3590.9,3590.2,2.78528]
[1732851295986,0.26070732,3590.8,3590.2,2.78528]
[1732851296322,0.26070732,3590.7,3590.2,2.78528]
[1732851296588,3.59932,3590.9,3590.3,0.632359]
[1732851296789,0.2607066,3590.8,3590.3,0.632359]
[1732851296970,0.2607066,3590.7,3590.3,0.632359]
[1732851297153,3.59932,3590.9,3590.3,0.632359]
[1732851297349,0.26070585,3590.8,3590.3,0.632359]
[1732851297695,0.26070585,3590.7,3590.3,0.632359]
[1732851297890,0.8145,3590.9,3590.3,0.632359]
[1732851298097,0.26070606,3590.8,3590.3,0.632359]
[1732851298250,0.26070606,3590.7,3590.3,0.632359]
[1732851298455,0.8145,3590.9,3590.4,0.3417639]
[1732851298766,0.26070575,3590.8,3590.4,0.3417639]
[1732851298950,0.26070575,3590.7,3590.4,0.3417639]
[1732851299149,0.8145,3590.9,3590.4,0.3417639]
[1732851299374,0.26074011,3590.8,3590.4,0.3417639]
[1732851299585,0.26074011,3590.7,3590.4,0.3417639]
[1732851299787,0.8145,3590.9,3590.4,0.3417639]
[1732851299993,0.2607399,3590.8,3590.3,3.417639]
[1732851300220,0.2607399,3590.7,3590.3,3.417639]
[1732851300404,0.8145,3590.9,3590.3,3.417639]
[1732851300576,0.26077172,3590.8,3590.3,3.417639]
[1732851300774,0.26077172,3590.7,3590.3,3.417639]
[1732851301000,0.8145,3590.9,3590.3,3.417639]
[1732851301208,0.26076846,3590.8,3590.5,0.7596]
[1732851301512,0.7917,3591.4,3590.5,0.7596]
[1732851301513,0.41712945,3591.3,3590.7,2.78497]
[1732851301695,0.67789886,3591.2,3590.7,2.78497]
[1732851302018,0.67789886,3591.1,3591.0,2.78473]
[1732851302169,0.26076941,3591.1,3591.0,2.78473]
[1732851302369,0.26076941,3591.1,3591.0,3.341691]
[1732851302715,0.26076941,3591.1,3591.0,4.162391]
[1732851303212,0.43125705,3591.9,3591.5,2.78435]
[1732851303380,0.67788776,3591.8,3591.5,2.78435]
[1732851303577,0.26076251,3591.7,3591.5,2.78435]
[1732851303833,0.67798253,3591.6,3591.5,2.78435]
[1732851304122,0.41719796,3591.6,3591.5,0.556891]
[1732851304415,0.26074872,3591.6,3591.5,3.5563]
[1732851304571,0.41719796,3592.3,3591.5,3.5563]
[1732851304774,0.67792817,3592.2,3591.8,2.78411]
[1732851304997,2.78344,3592.7,3591.8,2.78411]
[1732851304998,0.67792817,3592.1,3592.0,2.78394]
[1732851305716,0.67792817,3592.1,3591.8,2.78411]
[1732851305916,0.67792817,3592.0,3591.5,3.55631]
[1732851306118,0.67792817,3591.9,3591.5,3.911941]
[1732851306408,0.26073021,3591.8,3591.5,0.355631]
[1732851306631,0.26073021,3591.7,3591.2,3.59122]
[1732851306915,0.67792817,3591.6,3591.1,2.78462]
[1732851307212,0.26044534,3591.5,3591.2,2.78457]
[1732851307412,0.26044534,3591.4,3591.2,2.78457]
[1732851307599,0.41671254,3591.9,3591.2,2.78457]
[1732851307797,0.67713313,3591.8,3591.2,2.78457]
[1732851308008,3.57249,3592.0,3591.2,2.78457]
[1732851308009,0.67713313,3591.7,3591.3,0.03369964]
[1732851308218,3.57249,3592.0,3591.3,0.03369964]
[1732851308219,0.26042059,3591.6,3591.3,0.03369964]
[1732851308416,0.26042059,3591.5,3591.3,0.03369964]
[1732851308623,0.26042059,3591.4,3591.3,0.03369964]
[1732851308922,0.26042059,3591.4,3590.9,3.59151]
[1732851309079,0.27454819,3591.3,3590.9,0.8067]
[1732851309281,0.26042059,3591.2,3591.0,0.03371657]
[1732851309482,0.26042059,3591.1,3591.0,0.03371657]
[1732851309681,0.26042059,3591.1,3590.6,0.8023]
[1732851309878,0.0141276,3591.3,3591.0,0.03371657]
[1732851310219,0.67708081,3591.2,3590.6,0.8023]
[1732851310393,0.67708081,3591.2,3591.1,0.03371092]
[1732851310394,0.41671254,3591.2,3591.1,0.03371092]
[1732851310600,0.67708049,3591.2,3590.6,0.8023]
[1732851310786,0.26036795,3591.1,3590.6,0.8023]
[1732851310985,0.26036795,3591.0,3590.6,0.8023]
[1732851311225,0.26036795,3590.9,3590.5,2.78511]
[1732851311390,0.41671254,3591.2,3590.5,2.78511]
[1732851311599,0.26043341,3591.1,3590.5,2.78511]
[1732851311899,0.26043341,3591.0,3590.5,2.78511]
[1732851312084,0.26043341,3590.9,3590.5,2.78511]
[1732851312280,0.26043341,3590.8,3590.4,0.55867603]
[1732851312484,0.26043341,3590.7,3590.4,3.75511263]
[1732851312818,0.41671254,3591.1,3590.4,3.75511263]
[1732851312992,0.67715179,3591.0,3590.4,3.34385603]
[1732851313193,0.26043925,3590.9,3590.4,3.34385603]
[1732851313409,0.26043925,3590.8,3590.4,3.34385603]
[1732851313731,0.26043925,3590.7,3590.4,3.34385603]
[1732851313891,0.4166546,3591.0,3590.4,3.34385603]
[1732851314222,0.26041226,3590.9,3590.4,3.34385603]
[1732851314424,0.27453986,3590.8,3590.4,3.34385603]
[1732851314628,0.26041226,3590.7,3590.4,4.03363063]
[1732851314788,0.4166546,3591.0,3590.4,4.03363063]
[1732851314981,0.26040502,3590.9,3590.4,4.03363063]
[1732851315183,0.26040502,3590.8,3590.5,2.7851]
[1732851315401,0.26040502,3590.7,3590.5,2.7851]
[1732851315600,0.4166546,3591.2,3590.6,0.48021506]
[1732851315800,0.67704579,3591.1,3590.5,2.7851]
[1732851315998,0.67704579,3591.0,3590.5,2.7851]
[1732851316236,0.26039119,3590.9,3590.5,2.7851]
[1732851316527,0.26039119,3590.8,3590.5,2.7851]
[1732851316736,0.26039119,3590.7,3590.5,2.7851]
[1732851316905,0.4166546,3591.0,3590.5,2.7851]
[1732851317087,0.26037894,3590.9,3590.5,2.7851]
[1732851317287,2.78452,3591.3,3590.5,3.54384506]
[1732851317526,0.41656465,3591.1,3590.5,2.7851]
[1732851317741,0.2603529,3590.8,3590.5,2.7851]
[1732851318527,0.26032829,3590.7,3590.5,2.7851]
[1732851318733,0.2603529,3590.8,3590.5,2.7851]
[1732851318886,0.26030936,3590.7,3590.5,2.7851]
[1732851319084,0.2603529,3590.8,3590.5,0.50177331]
[1732851319291,0.27443312,3590.7,3590.0,0.7546]
[1732851319492,0.26030552,3590.6,3589.7,0.7546]
[1732851319795,3.54232,3590.4,3589.7,0.7546]
[1732851319992,0.26030552,3590.3,3589.7,0.7546]
[1732851320217,3.54232,3590.4,3589.7,4.172952]
[1732851320528,0.2602254,3590.3,3589.7,4.172952]
[1732851320693,3.54232,3590.4,3589.8,0.54679876]
[1732851320894,0.26017998,3590.3,3589.8,0.54679876]
[1732851321090,0.7571,3590.4,3589.8,0.54679876]
[1732851321346,0.26011688,3590.3,3589.7,4.172952]
[1732851321636,0.7571,3590.4,3589.8,2.78564]
[1732851321828,0.26012656,3590.3,3589.8,3.4814992]
[1732851322032,0.7571,3590.4,3589.8,3.4814992]
[1732851322191,0.26007287,3590.3,3589.8,3.4814992]
[1732851322528,0.7571,3590.4,3589.8,3.4814992]
[1732851322748,0.26003685,3590.3,3589.8,3.4814992]
[1732851322922,0.7571,3590.4,3589.8,3.4814992]
[1732851323125,0.26003527,3590.3,3589.8,3.4814992]
[1732851323342,0.7571,3590.4,3589.8,3.4814992]
[1732851323639,0.25999787,3590.3,3589.8,3.4814992]
[1732851323812,0.7571,3590.4,3589.9,0.03293729]
[1732851324010,0.26000202,3590.3,3589.9,0.03293729]
[1732851324247,0.7571,3590.4,3589.9,0.03293729]
[1732851324447,0.25996911,3590.3,3589.9,0.03293729]
[1732851324634,0.7571,3590.4,3589.9,0.03293729]
[1732851324805,0.25996949,3590.3,3589.9,0.03293729]
[1732851325010,0.7571,3590.4,3589.9,0.03293729]
[1732851325206,0.27409407,3590.3,3589.9,0.03293729]
[1732851325535,0.25992791,3590.2,3589.7,0.7546]
[1732851325733,0.7571,3590.4,3590.0,0.03320694]
[1732851325939,0.25993298,3590.3,3589.7,0.7546]
[1732851326116,0.25993298,3590.2,3589.7,0.7546]
[1732851326447,0.25993298,3590.3,3589.8,0.03321823]
[1732851326609,0.7571,3590.4,3589.6,2.78581]
[1732851326610,0.25993298,3590.2,3589.6,2.78581]
[1732851326814,0.7571,3590.4,3589.9,0.03321259]
[1732851327014,0.25988146,3590.3,3589.7,2.78573]
[1732851327243,0.25988146,3590.2,3590.0,0.03320694]
[1732851327451,0.25988146,3590.3,3590.0,0.03320694]
[1732851327611,0.7571,3590.4,3589.7,2.78573]
[1732851327816,0.25984719,3590.3,3590.1,0.0332013]
[1732851328143,0.25984719,3590.2,3589.7,2.78573]
[1732851328450,0.25984719,3590.3,3589.5,2.78589]
[1732851328744,3.59144,3590.1,3589.1,0.799]
[1732851328952,0.25984719,3590.0,3589.3,2.78604]
[1732851329111,0.25984719,3589.9,3589.3,2.78604]
[1732851329307,0.25984719,3590.0,3589.3,3.144544]
[1732851329511,0.25984719,3589.9,3589.3,0.358504]
[1732851329828,3.04544719,3589.9,3589.3,0.358504]
[1732851330018,2.7856,3589.9,3589.1,3.58518]
[1732851330351,2.78554,3590.0,3588.8,3.3481967]
[1732851330352,0.8201,3589.6,3588.9,2.78635]
[1732851330649,0.8201,3589.6,3588.8,4.1002967]
[1732851330858,3.60592,3589.6,3588.8,4.1002967]
[1732851331010,3.60592,3589.6,3588.9,2.78634]
[1732851333959,0.8201,3589.6,3589.0,2.78628]
[1732851334434,0.8201,3589.6,3588.8,1.44079467]
[1732851334621,0.8201,3589.6,3588.9,2.78629]
[1732851335016,3.0,3589.9,3588.9,0.7596]
[1732851335248,0.25963446,3589.8,3589.3,2.78604]
[1732851335446,0.25963446,3589.9,3589.6,2.78579]
[1732851335651,0.25963446,3590.2,3589.7,0.7596]
[1732851336218,0.25963446,3590.1,3589.7,0.7596]
[1732851336414,0.25963446,3590.2,3589.7,0.7596]
[1732851336617,0.25963446,3590.1,3589.7,0.7596]
[1732851336852,3.25963446,3590.2,3589.7,0.7596]
[1732851337151,0.25963446,3590.1,3589.7,0.7596]
[1732851337930,2.78488,3590.9,3589.7,0.7596]
[1732851337931,0.25963446,3590.2,3590.0,2.7855]
[1732851338270,3.59377,3590.7,3590.1,0.07697875]
[1732851338559,0.25991501,3590.6,3590.1,0.07697875]
[1732851338765,0.25991501,3590.5,3590.1,0.07697875]
[1732851338950,0.25991501,3590.4,3590.1,0.07697875]
[1732851339167,0.25991501,3590.3,3590.1,0.07697875]
[1732851339332,0.25991501,3590.6,3590.1,0.07697875]
[1732851339663,0.25991501,3590.5,3590.0,2.7855]
[1732851339834,0.25991501,3590.4,3590.2,0.07694949]
[1732851340175,0.25991501,3590.3,3590.2,2.78536]
[1732851340460,0.25991501,3590.6,3590.2,0.89734949]
[1732851340662,0.25991501,3590.5,3590.2,0.89734949]
[1732851340860,0.25991501,3590.4,3590.1,2.78543]
[1732851341072,0.0141276,3590.6,3590.3,0.07694264]
[1732851341272,0.26005214,3590.5,3590.2,0.50084029]
[1732851341429,0.41586403,3590.7,3590.4,0.07693579]
[1732851341638,0.0141276,3590.6,3590.2,3.2092208]
[1732851341864,0.0141276,3590.6,3590.5,0.07692895]
[1732851342168,0.26005385,3590.6,3590.0,0.8204]
[1732851342333,0.0141276,3590.6,3590.5,0.07692895]
[1732851342530,0.26010804,3590.6,3590.1,2.78543]
[1732851342861,0.26012583,3590.5,3590.1,2.78543]
[1732851343089,0.26012583,3590.4,3590.2,0.71609049]
[1732851343236,0.26012583,3590.3,3590.2,0.71609049]
[1732851344872,0.41586403,3590.9,3590.2,2.86230949]
[1732851345671,0.7878,3591.0,3590.3,2.78525]
[1732851345835,0.7878,3591.0,3590.3,2.86219264]
[1732851346746,3.0,3590.9,3590.3,2.86219264]
[1732851348346,0.7878,3591.0,3590.3,0.07694264]
[1732851348765,0.7878,3591.0,3590.0,3.60584]
[1732851348958,0.7878,3591.0,3590.1,0.360584]
[1732851349158,0.7878,3591.0,3590.1,0.07695633]
[1732851349356,3.0,3590.9,3590.2,2.78533]
[1732851349689,3.0,3590.9,3590.3,0.07663517]
[1732851350272,3.0141276,3590.9,3590.3,0.07663517]
[1732851350767,3.0,3590.8,3590.3,0.07663517]
[1732851350972,0.67280836,3590.7,3590.3,0.07663517]
[1732851351176,0.67280836,3590.7,3590.1,2.78536]
[1732851351379,0.0141276,3590.7,3590.4,0.07662833]
[1732851351549,0.0141276,3590.7,3590.1,2.78536]
[1732851351751,0.0141276,3590.7,3590.5,0.07662148]
[1732851352075,0.0141276,3590.7,3590.6,0.07661464]
[1732851352379,0.0141276,3590.7,3590.0,3.60591]
[1732851352685,0.7853276,3590.7,3590.0,2.78551]
[1732851352900,2.54742473,3590.5,3590.1,0.07664887]
[1732851353061,2.78535,3590.3,3589.5,0.8148]
[1732851353381,0.7853276,3590.4,3589.5,0.8148]
[1732851353382,0.67708391,3590.2,3589.5,0.8148]
[1732851353584,0.67708391,3590.2,3589.7,2.78574]
[1732851353883,0.26041689,3590.1,3589.8,0.07654772]
[1732851354082,0.26041689,3590.0,3589.6,2.78582]
[1732851354284,0.26041689,3589.9,3589.7,2.78571]
[1732851354488,0.41666702,3590.2,3589.5,3.6007]
[1732851354709,2.78553,3590.0,3589.2,2.78609]
[1732851354847,1.03169589,3589.9,3589.2,2.78609]
[1732851355048,0.26049589,3589.8,3589.2,2.78609]
[1732851355244,0.26049589,3589.7,3589.3,2.78604]
[1732851355563,0.7712,3589.9,3589.3,2.78604]
[1732851355759,0.26051085,3589.8,3589.3,2.78604]
[1732851356072,0.26051085,3589.7,3589.3,2.78604]
[1732851356256,0.7712,3589.9,3589.3,2.78604]
[1732851356461,0.26049748,3589.8,3589.1,3.60101]
[1732851356805,0.26049748,3589.7,3589.2,2.78609]
[1732851356951,0.26049748,3589.6,3589.2,2.78609]
[1732851357143,0.7712,3589.9,3589.2,2.78609]
[1732851357350,0.26049939,3589.8,3589.2,2.78609]
[1732851357548,0.26049939,3589.7,3589.2,2.78609]
[1732851357887,0.7712,3589.9,3589.2,2.78609]
[1732851358097,0.2605008,3589.8,3589.2,2.78609]
[1732851358252,0.2605008,3589.7,3589.2,2.78609]
[1732851358445,0.7712,3589.9,3589.2,2.78609]
[1732851358648,0.26048351,3589.8,3589.2,2.78609]
[1732851358948,0.26048351,3589.7,3589.3,2.78603]
[1732851359144,0.7712,3589.9,3589.3,2.78603]
[1732851359348,0.26050323,3589.8,3589.3,2.78603]
[1732851359564,0.26050323,3589.7,3589.3,2.78603]
[1732851359848,0.7712,3589.9,3589.3,2.78603]
[1732851360075,0.26049896,3589.8,3589.3,2.78603]
[1732851360288,0.26049896,3589.7,3589.4,2.78596]
[1732851360489,0.7712,3589.9,3589.3,2.78603]
[1732851360699,0.26047164,3589.8,3589.3,2.78603]
[1732851361003,0.26047164,3589.7,3589.3,2.78603]
[1732851361185,0.7712,3589.9,3589.3,2.78603]
[1732851361497,0.260458,3589.8,3589.3,2.78603]
[1732851361695,0.26046002,3589.7,3589.3,2.78603]
[1732851362086,0.7712,3589.9,3589.3,2.78603]
[1732851362270,0.26048046,3589.8,3589.7,2.78574]
[1732851362602,2.78495,3590.8,3589.7,2.78574]
[1732851362603,0.41673604,3590.6,3590.4,2.78519]
[1732851362904,4.52945151,3591.4,3590.4,2.78519]
[1732851362905,0.777,3591.0,3590.5,2.78512]
[1732851363203,0.67716758,3590.9,3590.5,2.78512]
[1732851363415,0.67716758,3590.8,3590.5,2.78512]
[1732851363701,0.67716758,3590.7,3590.5,2.78512]
[1732851363871,0.67716758,3590.6,3590.5,2.78512]
[1732851364084,0.26044464,3590.6,3590.5,2.78512]
[1732851364770,0.67716758,3590.6,3590.5,2.78512]
[1732851364976,0.26044464,3590.6,3590.5,2.78512]
[1732851365174,0.2604748,3590.6,3590.5,2.78512]
[1732851365583,0.67723448,3590.6,3590.5,2.78512]
[1732851365907,0.2604748,3590.6,3590.5,2.78512]
[1732851366476,0.67723448,3590.6,3590.5,2.78512]
[1732851366699,0.2604748,3590.6,3590.5,2.78512]
[1732851368697,0.26043654,3590.6,3590.5,2.85899279]
[1732851368884,0.26043654,3590.6,3590.5,3.49850707]
[1732851369503,0.41669846,3591.1,3590.7,2.78496]
[1732851369679,0.67711633,3591.0,3590.7,2.78496]
[1732851370004,0.26041787,3590.9,3590.8,0.07385225]
[1732851370365,0.26041787,3590.9,3590.7,2.78496]
[1732851370567,0.41669846,3591.2,3590.8,0.69476377]
[1732851370899,0.67703422,3591.1,3591.0,2.78473]
[1732851371103,0.26033576,3591.1,3591.0,2.78473]
[1732851371277,0.26033576,3591.1,3591.0,2.85846635]
[1732851372777,0.26033576,3591.1,3591.0,0.07373635]
[1732851373205,0.26033576,3591.1,3591.0,2.85846635]
[1732851374280,0.26033576,3591.4,3591.3,2.7845]
[1732851374508,0.26033576,3591.7,3591.3,2.7845]
[1732851374680,0.8222,3591.9,3591.4,2.7844]
[1732851374681,0.26033576,3591.6,3591.4,2.7844]
[1732851375004,0.26033576,3591.5,3591.4,2.85800679]
[1732851375241,0.27446336,3591.8,3591.4,0.07360679]
[1732851375387,0.26033576,3591.7,3591.0,2.78468]
[1732851375716,0.26033576,3591.6,3591.2,2.78456]
[1732851375887,0.2598603,3591.5,3591.2,2.78456]
[1732851376222,0.2598603,3591.4,3591.3,0.07330062]
[1732851376390,0.2598603,3591.8,3591.3,0.07330062]
[1732851376582,0.2598603,3591.7,3591.3,0.07330062]
[1732851376785,0.2598603,3591.6,3591.3,0.07330062]
[1732851376982,0.2598603,3591.5,3591.3,0.07330062]
[1732851377204,0.2598603,3591.8,3591.3,0.07330062]
[1732851377420,0.2598603,3591.7,3591.3,0.07330062]
[1732851377582,1.23797648,3591.9,3591.3,0.07330062]
[1732851377583,0.2598603,3591.6,3591.3,0.07330062]
[1732851377782,0.2598603,3591.5,3591.3,0.07330062]
[1732851378019,0.2598603,3591.8,3591.3,0.07330062]
[1732851378184,0.2598603,3591.7,3591.3,0.07330062]
[1732851378385,0.2598603,3591.6,3591.3,0.07330062]
[1732851378583,0.2598603,3591.8,3591.3,0.07330062]
[1732851378782,0.2598603,3591.7,3591.3,0.07330062]
[1732851379087,1.23728267,3591.9,3591.3,0.07330062]
[1732851379330,0.25942667,3591.6,3591.3,0.07330062]
[1732851379619,0.25942667,3591.8,3591.3,0.07330062]
[1732851379824,0.25942667,3591.7,3591.3,0.07330062]
[1732851379987,0.25942667,3591.6,3591.3,0.07330062]
[1732851380188,0.25942667,3591.8,3591.3,0.07330062]
[1732851380484,0.25942667,3591.7,3591.3,0.07330062]
[1732851380981,0.25942667,3591.6,3591.2,2.78452]
[1732851381188,0.25942667,3591.8,3591.2,2.78452]
[1732851381521,0.25942667,3591.8,3591.3,2.85776231]
[1732851381835,0.25942667,3591.8,3591.3,2.85769231]
[1732851382120,0.25929406,3591.8,3591.3,2.85769231]
[1732851382525,0.25925622,3591.8,3591.3,2.85769231]
[1732851383314,0.25925622,3591.8,3591.5,2.78434]
[1732851383624,0.25925622,3592.1,3591.6,2.78426]
[1732851383818,0.25925622,3592.0,3591.6,2.8574922]
[1732851384588,0.25925622,3592.1,3591.6,2.8574922]
[1732851385133,0.25925622,3592.1,3591.8,2.78405]
[1732851385625,0.7559,3592.4,3592.0,0.8213]
[1732851385626,0.25925622,3592.3,3592.0,0.8213]
[1732851385799,1.22946526,3592.5,3592.0,0.8213]
[1732851386123,0.25931364,3592.3,3592.1,0.073198]
[1732851386289,0.25931364,3592.4,3592.1,0.073198]
[1732851386487,0.25931364,3592.3,3592.1,0.073198]
[1732851386683,0.25931364,3592.4,3592.1,0.073198]
[1732851386901,0.25931364,3592.3,3592.1,0.073198]
[1732851387100,0.25931364,3592.4,3592.1,0.073198]
[1732851387297,0.25931364,3592.3,3592.1,2.857068]
[1732851387620,0.25931364,3592.4,3592.2,2.7838]
[1732851387919,0.25931364,3592.6,3592.3,2.8566034]
[1732851388126,0.25931364,3592.5,3592.3,2.8566034]
[1732851388321,0.25931364,3592.7,3592.3,2.8566034]
[1732851388529,0.25931364,3592.6,3592.3,2.8566034]
[1732851388837,0.25931364,3592.7,3592.3,0.0729034]
[1732851388988,1.5029065,3592.6,3592.0,0.8213]
[1732851389188,3.04290364,3592.5,3591.7,3.54508]
[1732851389400,0.27355352,3592.4,3592.1,0.07291707]
[1732851389611,0.25942592,3592.3,3591.9,2.78403]
[1732851389822,0.0141276,3592.4,3592.2,0.07283363]
[1732851390121,0.25942833,3592.3,3591.9,2.78403]
[1732851390332,0.25942833,3592.3,3591.7,3.54508]
[1732851390495,0.27355593,3592.3,3591.7,3.899588]
[1732851390827,1.22946526,3592.0,3591.3,2.78449]
[1732851391037,1.48889359,3592.0,3591.4,2.78442]
[1732851391328,0.25942833,3592.0,3591.4,2.78442]
[1732851391731,0.0141276,3591.9,3591.4,2.78442]
[1732851392187,1.08372833,3591.8,3591.1,2.78465]
[1732851392529,0.25942833,3591.7,3591.0,0.56212028]
[1732851392827,0.25942833,3591.6,3591.0,2.7847]
[1732851393024,3.60843,3591.8,3591.0,3.424314]
[1732851393234,1.48895552,3591.7,3591.0,3.424314]
[1732851393395,0.25949026,3591.6,3591.0,3.424314]
[1732851393595,0.25949026,3591.5,3591.0,3.424314]
[1732851393972,0.25949026,3591.6,3591.0,3.424314]
[1732851394087,0.25949026,3591.5,3591.0,3.424314]
[1732851394290,1.64482896,3591.7,3591.0,3.424314]
[1732851394492,0.25969495,3591.6,3591.0,3.424314]
[1732851394735,0.25969495,3591.5,3591.0,3.424314]
[1732851395026,0.25969495,3591.4,3591.0,3.424314]
[1732851395205,4.42903896,3591.7,3591.0,3.424314]
[1732851395403,0.25976691,3591.6,3591.0,3.424314]
[1732851395637,4.42903896,3591.7,3591.0,0.639614]
[1732851395638,1.50335977,3591.5,3591.0,0.639614]
[1732851395914,1.50335977,3591.5,3590.6,2.78504]
[1732851395915,1.22946526,3591.1,3590.6,2.78504]
[1732851396118,0.0141276,3591.5,3590.5,0.8026]
[1732851396119,1.98266526,3591.5,3591.0,2.78473]
[1732851396317,0.25980954,3591.4,3591.1,2.78464]
[1732851396488,0.25980954,3591.3,3591.1,2.78464]
[1732851396692,0.25980954,3591.2,3591.1,2.78464]
[1732851396928,0.25980954,3591.5,3591.1,2.78464]
[1732851397226,0.25980954,3591.4,3591.3,2.7845]
[1732851397593,0.25980954,3591.8,3591.3,2.85779425]
[1732851397797,0.25980954,3591.7,3591.3,2.85779425]
[1732851398026,0.25980954,3591.6,3591.3,2.85779425]
[1732851398205,0.25980954,3591.5,3591.3,2.85779425]
[1732851398408,0.25980954,3591.4,3591.3,2.85779425]
[1732851399726,0.25980954,3591.4,3591.3,3.50229768]
[1732851399936,0.41586888,3591.8,3591.3,0.71779768]
[1732851400106,0.41586888,3591.8,3591.4,2.78435]
[1732851400315,0.25992601,3591.7,3591.4,2.78435]
[1732851400513,0.25992601,3591.6,3591.5,0.07328057]
[1732851402342,0.25992601,3591.6,3591.2,2.78458]
[1732851402538,0.41586888,3592.0,3591.5,0.0732539]
[1732851402842,0.67590788,3591.9,3591.5,2.78434]
[1732851403053,0.67590788,3591.8,3591.6,0.07324706]
[1732851403206,0.67590788,3591.7,3591.5,2.78434]
[1732851403408,0.26007684,3591.6,3591.5,2.78434]
[1732851403831,3.7948,3592.1,3591.5,2.78434]
[1732851404010,0.26002005,3591.6,3591.2,2.78458]
[1732851404312,0.41603209,3591.9,3591.3,2.78444]
[1732851404516,0.67605214,3591.8,3591.4,2.78441]
[1732851404750,0.67605214,3591.7,3591.4,2.78441]
[1732851404951,0.26002005,3591.6,3591.4,2.78441]
[1732851405252,0.26002005,3591.5,3591.4,2.78441]
[1732851405553,0.26002005,3591.5,3591.4,3.3771808]
[1732851407244,0.26002005,3591.5,3591.4,2.78441]
[1732851408459,1.05872005,3591.5,3590.8,0.7674]
[1732851408675,0.7987,3591.3,3590.4,3.33710135]
[1732851409026,0.7987,3591.3,3590.4,0.55192135]
[1732851409027,1.41128229,3591.3,3590.4,0.55192135]
[1732851409224,0.7987,3591.3,3590.5,2.78506]
[1732851409537,0.7987,3591.3,3590.6,2.78503]
[1732851410133,0.67618252,3591.2,3590.6,2.78503]
[1732851410442,0.6759953,3591.2,3590.6,2.78503]
[1732851410647,0.6759953,3591.1,3590.6,2.78503]
[1732851411176,3.58322,3591.3,3590.6,2.78503]
[1732851411468,0.67597967,3591.2,3590.6,2.78503]
[1732851411658,0.25999218,3591.1,3590.4,3.33710135]
[1732851411825,3.05887978,3591.0,3590.4,0.55192135]
[1732851412026,2.78459,3591.2,3590.4,0.55192135]
[1732851412027,1.04359218,3590.9,3590.4,0.55192135]
[1732851412272,0.25999218,3590.8,3590.4,0.55192135]
[1732851412433,0.25995345,3590.7,3590.4,0.55192135]
[1732851412805,0.7836,3590.9,3590.5,0.07072218]
[1732851413086,0.25998822,3590.8,3590.5,0.07072218]
[1732851413241,0.25998822,3590.7,3590.5,0.07072218]
[1732851413445,0.7836,3590.9,3590.5,0.07072218]
[1732851413703,0.25999614,3590.8,3590.5,0.07072218]
[1732851413862,0.25999614,3590.7,3590.5,0.07072218]
[1732851414062,0.7836,3590.9,3590.5,0.07072218]
[1732851414373,0.25993186,3590.8,3590.5,0.07072218]
[1732851414544,0.25993186,3590.7,3590.5,0.07072218]
[1732851414899,3.87737186,3590.6,3589.9,2.78554]
[1732851415055,0.25993186,3590.5,3589.9,2.78554]
[1732851415256,3.61744,3590.6,3589.9,2.78554]
[1732851415501,0.25976918,3590.5,3589.9,2.78554]
[1732851415796,0.8324,3590.6,3589.9,2.78554]
[1732851416084,0.25977639,3590.5,3589.9,2.78554]
[1732851416381,0.8324,3590.6,3589.9,2.78554]
[1732851416582,0.25970158,3590.5,3589.9,2.78554]
[1732851416807,0.8324,3590.6,3589.9,3.42371]
[1732851416949,0.25970829,3590.5,3589.9,3.42371]
[1732851417148,0.25965249,3590.5,3590.0,2.78551]
[1732851417562,0.25965249,3590.5,3590.1,2.78539]
[1732851418086,0.8324,3590.6,3590.1,2.78539]
[1732851418288,0.25965361,3590.5,3590.1,3.406297]
[1732851418649,0.8324,3590.6,3590.1,2.78539]
[1732851419159,0.25965361,3590.6,3590.1,2.78539]
[1732851419364,0.25965361,3590.8,3590.1,2.78539]
[1732851419662,3.54832,3590.9,3590.1,2.78539]
[1732851419873,0.259787,3590.7,3590.1,2.78539]
[1732851420080,0.259787,3590.6,3590.1,3.342488]
[1732851420263,3.54832,3590.9,3590.1,3.342488]
[1732851420592,0.25982244,3590.8,3590.4,2.78516]
[1732851420786,0.25982244,3590.7,3590.4,2.78516]
[1732851420948,0.7635,3590.9,3590.5,2.78512]
[1732851421149,0.25977892,3590.8,3590.5,2.78512]
[1732851421371,0.25977892,3590.7,3590.5,2.78512]
[1732851421587,3.831,3591.2,3590.4,0.6890418]
[1732851421588,2.78474,3591.0,3590.4,0.6890418]
[1732851421762,0.27392325,3590.9,3590.3,2.78528]
[1732851421960,0.25979565,3590.8,3590.3,2.78528]
[1732851422186,0.27392325,3590.7,3590.3,2.78528]
[1732851422487,0.25979565,3590.6,3590.4,2.78519]
[1732851422786,0.25979565,3590.8,3590.3,2.78528]
[1732851423085,0.41568486,3591.1,3590.6,2.78504]
[1732851423285,0.2598655,3591.0,3590.7,0.07125135]
[1732851423448,0.2598655,3590.9,3590.4,2.78518]
[1732851423648,0.2598655,3590.8,3590.5,0.07126504]
[1732851423877,0.2598655,3590.7,3590.5,0.07126504]
[1732851424184,0.2598655,3590.9,3590.5,2.85638504]
[1732851424494,0.2598655,3590.8,3590.5,3.41490765]
[1732851424783,3.831,3591.2,3590.5,3.41490765]
[1732851424953,0.25993069,3591.1,3590.5,2.85638504]
[1732851425155,0.25993627,3591.0,3590.5,2.85638504]
[1732851425384,0.25993627,3590.9,3590.5,2.85638504]
[1732851425566,0.25993627,3590.8,3590.5,2.85638504]
[1732851425773,4.24689804,3591.2,3590.5,2.85638504]
[1732851425960,0.25997445,3591.1,3590.5,2.85638504]
[1732851426295,4.24689804,3591.2,3590.6,2.78498]
[1732851426296,0.25997445,3591.0,3590.6,2.78498]